bitfinex/quotes_SOLUSD_20240818
["timestamp","ask_amount","ask_price","bid_price","bid_amount"]
[1723990946434,16.2999,145.59,145.52,29.38686158]
[1723990947833,16.2999,145.59,145.54,22.21]
[1723990948020,16.2999,145.59,145.55,1.3737263]
[1723990948208,16.2999,145.59,145.54,22.21]
[1723990949129,16.2999,145.59,145.55,20.0]
[1723990953342,16.2999,145.59,145.56,22.21]
[1723990953717,6.4715,145.61,145.56,22.21]
[1723990954437,6.4715,145.61,145.57,20.0]
[1723990955245,6.4715,145.61,145.59,22.21]
[1723990955828,15.1739,145.63,145.59,22.21]
[1723990956030,15.1739,145.63,145.6,21.37331132]
[1723990956245,15.1739,145.63,145.61,1.373217]
[1723990957319,15.1739,145.63,145.6,21.37329231]
[1723990958149,15.1739,145.63,145.6,20.0]
[1723990959049,15.1739,145.63,145.61,1.37329252]
[1723990960128,15.1739,145.63,145.6,20.0]
[1723990961858,15.1739,145.63,145.61,23.58331248]
[1723990962030,15.1739,145.63,145.62,20.0]
[1723990962226,15.1739,145.63,145.6,20.0]
[1723990965854,15.1739,145.63,145.58,20.0]
[1723990966034,6.31,145.65,145.59,0.12549]
[1723990966960,6.31,145.65,145.58,20.0]
[1723990969179,6.31,145.65,145.59,22.33549]
[1723990969461,6.31,145.65,145.6,20.0]
[1723990971551,6.31,145.65,145.58,20.0]
[1723990971768,7.97112467,145.65,145.58,20.0]
[1723990971951,6.31,145.65,145.58,20.0]
[1723990972771,6.31,145.65,145.56,20.12549]
[1723990974756,6.31,145.65,145.58,0.12549]
[1723990975271,6.31,145.65,145.58,20.12549]
[1723990977468,7.50722059,145.65,145.58,20.12549]
[1723990981085,7.50722059,145.65,145.6,0.12549]
[1723990981291,6.31,145.65,145.6,20.12549]
[1723990986591,6.31,145.65,145.61,8.88]
[1723990986769,6.31,145.65,145.62,20.0]
[1723990991773,6.31,145.65,145.57,9.00549]
[1723990991975,6.31,145.65,145.58,20.0]
[1723990992688,6.31,145.65,145.55,7.17204127]
[1723990992689,8.88,145.63,145.55,7.17204127]
[1723990992893,17.21102467,145.62,145.53,8.88]
[1723990993071,8.88,145.61,145.53,8.88]
[1723990993870,8.88,145.61,145.51,7.17452854]
[1723990994074,8.12732467,145.6,145.51,7.17452854]
[1723990994289,8.12732467,145.6,145.52,8.88]
[1723990994497,8.12732467,145.6,145.51,7.17452854]
[1723990995193,1.66112467,145.59,145.51,7.17452854]
[1723990995690,6.4662,145.6,145.53,0.12549]
[1723990996196,6.4662,145.6,145.53,20.12549]
[1723990997276,6.4662,145.6,145.54,23.60382299]
[1723990997482,6.4662,145.6,145.55,21.37370133]
[1723990997792,6.4662,145.6,145.55,20.0]
[1723990999787,15.5499,145.62,145.56,23.72903538]
[1723991000089,15.5499,145.62,145.56,22.35549]
[1723991000286,15.5499,145.62,145.57,20.0]
[1723991000478,15.5499,145.62,145.58,1.37353916]
[1723991001082,15.5499,145.62,145.58,23.60353916]
[1723991001477,15.5499,145.62,145.59,1.37298848]
[1723991002191,15.5499,145.62,145.58,22.23]
[1723991002395,15.5499,145.62,145.57,20.0]
[1723991004604,15.5499,145.62,145.55,20.12549]
[1723991007105,17.21102467,145.62,145.52,7.17325526]
[1723991007405,45.37647,145.61,145.52,29.40325526]
[1723991008596,45.37647,145.61,145.52,22.23]
[1723991008980,45.37647,145.61,145.51,22.35549]
[1723991009182,45.37647,145.61,145.52,20.0]
[1723991009398,45.37647,145.61,145.52,28.2866876]
[1723991011098,15.5499,145.62,145.53,0.12549]
[1723991011396,15.5499,145.62,145.53,22.23]
[1723991011601,15.5499,145.62,145.54,20.0]
[1723991012385,0.12549,145.61,145.54,20.0]
[1723991012705,45.37647,145.61,145.54,20.0]
[1723991013585,15.5499,145.62,145.54,20.0]
[1723991014405,15.5499,145.62,145.54,28.89]
[1723991016507,15.5499,145.62,145.56,8.89]
[1723991016701,15.5499,145.62,145.57,1.08684231]
[1723991016905,15.5499,145.62,145.56,8.89]
[1723991017104,15.5499,145.62,145.58,10.2635167]
[1723991017483,15.5499,145.62,145.58,8.89]
[1723991018081,15.5499,145.62,145.59,1.3735327]
[1723991018506,15.5499,145.62,145.58,8.89]
[1723991018713,15.5499,145.62,145.59,1.37348228]
[1723991019408,15.5499,145.62,145.59,21.37344491]
[1723991019788,15.5499,145.62,145.59,20.0]
[1723991022091,15.5499,145.62,145.55,8.89]
[1723991022297,15.5499,145.62,145.56,20.0]
[1723991024613,15.5499,145.62,145.52,19.4609561]
[1723991024796,45.37647,145.61,145.52,8.2866876]
[1723991024989,45.37647,145.61,145.52,17.1766876]
[1723991025388,47.03759467,145.61,145.52,17.1766876]
[1723991025694,38.5415527,145.6,145.5,8.89]
[1723991025897,53.1034327,145.59,145.5,8.89]
[1723991026208,45.37647,145.59,145.5,8.89]
[1723991026593,7.72548254,145.58,145.5,8.89]
[1723991026791,45.37647,145.59,145.5,8.89]
[1723991027010,7.72515006,145.58,145.5,8.89]
[1723991027203,45.37647,145.59,145.5,8.89]
[1723991027514,0.12549,145.59,145.5,8.89]
[1723991027716,30.6891,145.6,145.5,8.89]
[1723991028215,30.6891,145.6,145.51,20.0]
[1723991028990,0.12549,145.59,145.51,20.0]
[1723991029187,45.50196,145.59,145.51,20.0]
[1723991029409,45.37647,145.59,145.51,20.0]
[1723991029613,0.12549,145.59,145.51,20.0]
[1723991029792,30.6891,145.6,145.51,20.0]
[1723991029994,45.37647,145.59,145.51,20.0]
[1723991030512,10.55112467,145.58,145.51,20.0]
[1723991030715,17.25951467,145.57,145.49,8.89]
[1723991030893,17.25951467,145.57,145.5,20.0]
[1723991031216,15.59839,145.57,145.5,20.0]
[1723991031520,17.25951467,145.57,145.5,20.0]
[1723991031894,6.6602,145.56,145.46,7.17842743]
[1723991032087,6.6602,145.56,145.46,16.06842743]
[1723991032088,0.12549,145.55,145.46,16.06842743]
[1723991032289,1.66112467,145.54,145.46,16.06842743]
[1723991032886,15.2565,145.53,145.46,16.06842743]
[1723991033303,15.2565,145.53,145.42,9.1531598]
[1723991033304,32.46782467,145.52,145.42,0.8664722]
[1723991033616,32.46782467,145.52,145.42,9.7564722]
[1723991033617,8.89,145.5,145.42,9.7564722]
[1723991033794,1.66112467,145.49,145.42,9.7564722]
[1723991034389,1.66112467,145.49,145.42,0.8664722]
[1723991034999,1.66112467,145.51,145.42,0.8664722]
[1723991035206,0.12549,145.5,145.42,0.8664722]
[1723991035401,0.12549,145.5,145.42,0.3664722]
[1723991035605,67.16768,145.52,145.42,0.3664722]
[1723991035915,21.9167,145.52,145.46,22.27]
[1723991036320,21.9167,145.52,145.47,20.0]
[1723991037390,21.9167,145.52,145.44,43.64471241]
[1723991037714,21.9167,145.52,145.46,22.27]
[1723991037917,21.9167,145.52,145.47,21.37451463]
[1723991039421,21.9167,145.52,145.47,21.37452562]
[1723991040188,21.9167,145.52,145.48,22.27]
[1723991040509,21.9167,145.52,145.49,1.37445466]
[1723991041009,21.9167,145.52,145.48,23.64445795]
[1723991041319,21.9167,145.52,145.47,20.0]
[1723991041619,21.9167,145.52,145.46,22.27]
[1723991041818,21.9167,145.52,145.47,20.0]
[1723991042418,21.9167,145.52,145.47,21.3745016]
[1723991042717,21.9167,145.52,145.47,20.0]
[1723991045204,1.66112467,145.51,145.44,22.27]
[1723991045408,1.66112467,145.51,145.42,37.6791722]
[1723991045609,1.66112467,145.51,145.42,22.6364722]
[1723991045911,21.9167,145.52,145.46,22.27]
[1723991046319,21.9167,145.52,145.44,22.27]
[1723991046999,21.9167,145.52,145.45,20.0]
[1723991047309,1.66112467,145.51,145.43,0.12549]
[1723991047907,1.66112467,145.51,145.43,22.39549]
[1723991048802,1.66112467,145.51,145.44,20.0]
[1723991049302,21.9167,145.52,145.44,20.0]
[1723991049519,0.12549,145.51,145.44,20.0]
[1723991049825,21.9167,145.52,145.44,20.0]
[1723991049826,21.9167,145.52,145.46,22.27]
[1723991051213,21.9167,145.52,145.47,20.0]
[1723991051904,21.9167,145.52,145.46,22.27]
[1723991052218,21.9167,145.52,145.47,20.0]
[1723991053423,21.9167,145.52,145.45,20.0]
[1723991054231,1.66112467,145.51,145.45,20.0]
[1723991054417,21.9167,145.52,145.45,20.0]
[1723991054805,1.66112467,145.51,145.45,20.0]
[1723991055195,21.9167,145.52,145.45,20.0]
[1723991056524,21.9167,145.52,145.46,8.9]
[1723991056826,21.9167,145.52,145.47,20.0]
[1723991057008,21.9167,145.52,145.48,8.9]
[1723991059315,18.8621373,145.64,145.5,8.9]
[1723991059522,6.107,145.57,145.52,8.9]
[1723991060109,6.107,145.57,145.54,8.9]
[1723991060321,6.107,145.57,145.55,8.9]
[1723991061134,6.107,145.57,145.53,8.9]
[1723991061920,6.107,145.57,145.49,0.12549]
[1723991062127,6.107,145.57,145.5,8.9]
[1723991062634,6.107,145.57,145.51,20.0]
[1723991063216,6.107,145.57,145.5,20.0]
[1723991067330,15.6573,145.56,145.5,20.0]
[1723991067727,1.66112467,145.55,145.5,20.0]
[1723991068329,15.6573,145.56,145.5,20.0]
[1723991069345,15.6573,145.56,145.44,48.85941132]
[1723991069516,45.37647,145.55,145.46,22.24]
[1723991070035,15.6573,145.56,145.48,22.24]
[1723991070935,15.6573,145.56,145.49,20.0]
[1723991084541,15.6573,145.56,145.5,8.9]
[1723991084738,15.6573,145.56,145.51,20.0]
[1723991087252,15.6573,145.56,145.52,10.27429065]
[1723991087433,15.6573,145.56,145.54,8.9]
[1723991089532,16.0726,145.6,145.55,1.37401022]
[1723991089738,16.0726,145.6,145.56,8.9]
[1723991090754,16.0726,145.6,145.57,20.0]
[1723991092354,6.0918,145.61,145.58,8.9]
[1723991092932,15.799,145.64,145.58,8.9]
[1723991093175,0.12549,145.63,145.57,20.0]
[1723991093334,0.12549,145.63,145.53,35.6]
[1723991093335,0.12549,145.63,145.58,8.9]
[1723991094355,15.799,145.64,145.58,8.9]
[1723991096357,15.799,145.64,145.59,1.37281783]
[1723991096656,15.799,145.64,145.58,8.9]
[1723991096958,15.799,145.64,145.6,8.9]
[1723991097339,15.799,145.64,145.6,10.27338662]
[1723991099658,6.2574,145.65,145.6,10.27338662]
[1723991099856,6.2574,145.65,145.61,1.37335858]
[1723991100057,6.2574,145.65,145.61,21.37335858]
[1723991101259,6.2574,145.65,145.61,20.0]
[1723991103338,6.2574,145.65,145.61,21.37331371]
[1723991104157,16.2098,145.67,145.61,21.37331371]
[1723991104351,16.2098,145.67,145.62,8.9]
[1723991104762,16.2098,145.67,145.63,20.0]
[1723991105770,16.2098,145.67,145.64,8.9]
[1723991105972,6.244,145.69,145.64,8.9]
[1723991106269,6.244,145.69,145.65,20.0]
[1723991107876,16.2098,145.7,145.65,20.0]
[1723991109064,6.244,145.73,145.66,8.9]
[1723991109259,6.244,145.73,145.67,20.0]
[1723991109444,6.244,145.73,145.66,8.9]
[1723991109860,6.244,145.73,145.67,20.0]
[1723991111961,0.12549,145.72,145.67,20.0]
[1723991116376,6.244,145.73,145.67,20.0]
[1723991116879,16.2098,145.74,145.68,8.9]
[1723991117086,16.2098,145.74,145.69,20.0]
[1723991117256,6.1395,145.77,145.69,20.0]
[1723991117257,6.1395,145.77,145.7,8.9]
[1723991117890,6.1395,145.77,145.72,8.9]
[1723991118261,16.6649,145.78,145.72,8.9]
[1723991119651,1.66112467,145.77,145.72,8.9]
[1723991119850,16.6649,145.78,145.72,8.9]
[1723991120072,16.6649,145.78,145.73,20.0]
[1723991120377,10.81210467,145.77,145.68,8.9]
[1723991120578,1.66112467,145.76,145.69,20.0]
[1723991122274,0.12549,145.75,145.67,28.9]
[1723991122463,1.66112467,145.74,145.67,28.9]
[1723991122662,0.12549,145.75,145.67,28.9]
[1723991124188,0.12549,145.75,145.69,8.9]
[1723991124387,0.12549,145.75,145.7,20.0]
[1723991126670,0.25098,145.75,145.7,20.0]
[1723991126884,2.03759467,145.75,145.69,20.0]
[1723991127702,8.17709467,145.75,145.66,15.4834]
[1723991127867,16.6649,145.72,145.62,15.4834]
[1723991128067,2.03759467,145.71,145.63,8.9]
[1723991128276,1.66112467,145.7,145.63,8.9]
[1723991129186,45.37647,145.71,145.65,8.9]
[1723991129496,0.37647,145.71,145.65,8.9]
[1723991129665,45.37647,145.71,145.65,8.9]
[1723991130170,45.37647,145.71,145.66,20.0]
[1723991130886,0.37647,145.71,145.66,20.0]
[1723991131096,16.6649,145.72,145.66,20.0]
[1723991131600,21.6365,145.75,145.69,8.9]
[1723991131812,21.6365,145.75,145.7,20.0]
[1723991133703,21.6365,145.75,145.71,8.9]
[1723991133994,15.497,145.75,145.72,20.0]
[1723991135303,6.6265,145.78,145.72,20.0]
[1723991136773,6.6265,145.78,145.74,8.9]
[1723991137205,15.497,145.79,145.74,8.9]
[1723991140006,15.497,145.79,145.72,28.9]
[1723991141177,15.497,145.79,145.72,20.0]
[1723991141404,15.497,145.79,145.72,8.9]
[1723991141782,15.497,145.79,145.73,20.0]
[1723991143504,23.1187834,145.82,145.74,8.9]
[1723991143706,45.50196,145.81,145.74,8.9]
[1723991146280,45.37647,145.81,145.75,16.4947]
[1723991146484,0.7322934,145.82,145.76,20.0]
[1723991146708,0.7322934,145.82,145.78,8.9]
[1723991147697,0.7322934,145.82,145.76,28.9]
[1723991148491,0.12549,145.81,145.71,16.4947]
[1723991148810,0.12549,145.77,145.68,8.9]
[1723991149104,47.03759467,145.77,145.68,8.9]
[1723991149318,0.12549,145.76,145.68,8.9]
[1723991149506,0.37647,145.76,145.68,8.9]
[1723991150588,0.37647,145.76,145.67,38.6847]
[1723991151204,0.37647,145.76,145.68,20.0]
[1723991151609,2.03759467,145.76,145.67,16.4947]
[1723991153310,2.03759467,145.76,145.68,20.0]
[1723991154609,15.9377,145.75,145.65,22.19]
[1723991154790,47.03759467,145.74,145.63,52.39470209]
[1723991154994,45.37647,145.74,145.63,52.39470209]
[1723991156001,15.9377,145.75,145.65,22.19]
[1723991156306,15.9377,145.75,145.67,22.19]
[1723991156491,15.9377,145.75,145.68,20.0]
[1723991156687,0.25098,145.76,145.68,20.0]
[1723991156882,0.12549,145.75,145.68,20.0]
[1723991158210,1.78661467,145.75,145.68,20.0]
[1723991159220,0.25098,145.74,145.68,20.0]
[1723991159420,0.12549,145.73,145.66,20.0]
[1723991159605,1.78661467,145.73,145.66,20.0]
[1723991160309,1.78661467,145.73,145.64,42.19]
[1723991160612,0.12549,145.73,145.65,0.12549]
[1723991160797,0.25098,145.74,145.66,22.19]
[1723991160997,0.12549,145.77,145.66,22.19]
[1723991161201,45.94046406,145.79,145.68,22.19]
[1723991161534,7.72068653,145.78,145.69,20.0]
[1723991161842,45.94046406,145.79,145.69,20.0]
[1723991162004,45.94046406,145.79,145.69,35.3457]
[1723991162005,16.582,145.79,145.69,35.3457]
[1723991162208,16.582,145.79,145.72,22.19]
[1723991162412,16.582,145.79,145.73,20.0]
[1723991162926,18.24312467,145.79,145.73,20.0]
[1723991163106,16.582,145.79,145.71,20.0]
[1723991164427,1.66112467,145.78,145.71,20.0]
[1723991165022,16.582,145.79,145.71,20.0]
[1723991165720,18.24312467,145.79,145.71,20.0]
[1723991166601,16.582,145.79,145.71,20.0]
[1723991168101,16.582,145.79,145.72,22.19]
[1723991168416,16.582,145.79,145.73,20.12549]
[1723991168996,16.582,145.79,145.73,20.0]
[1723991171426,18.24312467,145.79,145.73,20.0]
[1723991172819,18.24312467,145.79,145.71,20.0]
[1723991173238,16.582,145.79,145.72,22.19]
[1723991173534,18.24312467,145.79,145.73,20.0]
[1723991174712,16.582,145.79,145.73,20.0]
[1723991179212,16.582,145.79,145.73,28.87]
[1723991184019,16.582,145.79,145.75,8.87]
[1723991184222,16.582,145.79,145.76,20.0]
[1723991185313,0.7322934,145.82,145.77,8.87]
[1723991185826,0.7322934,145.82,145.78,20.0]
[1723991193214,2.39341807,145.82,145.78,20.0]
[1723991194114,0.7322934,145.82,145.78,20.0]
[1723991198618,0.7322934,145.82,145.79,10.22903321]
[1723991198949,0.7322934,145.82,145.8,20.0]
[1723991201037,0.7322934,145.82,145.81,8.87]
[1723991201239,0.7322934,145.82,145.81,28.87]
[1723991202736,0.7322934,145.82,145.81,20.0]
[1723991202941,0.7322934,145.82,145.75,15.7092]
[1723991203250,0.7322934,145.82,145.77,8.87]
[1723991204438,0.7322934,145.82,145.78,20.0]
[1723991205523,0.7322934,145.82,145.79,8.87]
[1723991205732,0.7322934,145.82,145.8,20.0]
[1723991207421,0.7322934,145.82,145.78,20.0]
[1723991210838,0.7322934,145.82,145.79,8.87]
[1723991211044,0.7322934,145.82,145.8,20.0]
[1723991213326,0.7322934,145.82,145.81,8.87]
[1723991213528,0.7322934,145.82,145.81,28.99549]
[1723991221556,0.7322934,145.82,145.81,28.87]
[1723991224067,0.7322934,145.82,145.81,28.99549]
[1723991227563,0.7322934,145.82,145.81,28.87]
[1723991229872,0.7322934,145.82,145.76,23.15864404]
[1723991230168,0.7322934,145.82,145.77,8.87]
[1723991231779,0.7322934,145.82,145.79,8.87]
[1723991232146,0.7322934,145.82,145.8,20.0]
[1723991235156,0.7322934,145.82,145.78,8.87]
[1723991235377,0.7322934,145.82,145.81,0.12549]
[1723991235548,0.7322934,145.82,145.81,20.12549]
[1723991238157,0.7322934,145.82,145.81,73.99549]
[1723991238577,0.7322934,145.82,145.81,100.60549]
[1723991239156,15.0018,145.89,145.81,100.98196]
[1723991239477,15.0018,145.89,145.85,8.87]
[1723991239657,15.0018,145.89,145.86,20.0]
[1723991240956,6.1295,145.91,145.87,8.87]
[1723991241177,6.1295,145.91,145.86,20.0]
[1723991242671,16.4957,145.92,145.87,8.87]
[1723991242875,16.4957,145.92,145.86,20.0]
[1723991242876,55.76504024,145.95,145.9,8.87]
[1723991243184,55.76504024,145.95,145.91,20.12549]
[1723991243358,55.76504024,145.95,145.92,8.87]
[1723991243561,55.76504024,145.95,145.91,20.0]
[1723991243760,55.76504024,145.95,145.88,8.87]
[1723991244074,6.3209,145.94,145.89,20.0]
[1723991244587,6.3209,145.94,145.87,20.0]
[1723991245083,0.12549,145.93,145.87,20.0]
[1723991245385,6.3209,145.94,145.87,20.0]
[1723991246893,6.3209,145.94,145.84,16.0043]
[1723991247065,47.03759467,145.93,145.85,8.87]
[1723991247260,45.37647,145.93,145.85,8.87]
[1723991247581,16.6614,145.92,145.85,8.87]
[1723991247766,16.6614,145.92,145.8,24.54845213]
[1723991247970,16.6614,145.92,145.84,8.87]
[1723991248179,16.6614,145.92,145.85,20.0]
[1723991250778,16.6614,145.92,145.86,8.87]
[1723991251085,16.6614,145.92,145.87,20.0]
[1723991251874,16.6614,145.92,145.88,1.37080269]
[1723991252176,16.6614,145.92,145.87,20.0]
[1723991253190,16.6614,145.92,145.88,8.87]
[1723991253389,16.6614,145.92,145.89,20.0]
[1723991254593,6.3209,145.94,145.89,20.0]
[1723991254906,71.99724024,145.95,145.89,20.0]
[1723991254907,71.99724024,145.95,145.92,8.87]
[1723991255074,71.99724024,145.95,145.93,20.0]
[1723991256483,71.99724024,145.95,145.92,20.0]
[1723991258269,55.76504024,145.95,145.92,20.0]
[1723991259668,55.76504024,145.95,145.92,28.87]
[1723991262307,55.76504024,145.95,145.92,20.0]
[1723991262904,55.76504024,145.95,145.9,20.0]
[1723991263393,55.76504024,145.95,145.87,8.87]
[1723991264298,1.66112467,145.94,145.87,8.87]
[1723991264498,55.76504024,145.95,145.87,8.87]
[1723991264878,8.87,145.93,145.83,10.18506528]
[1723991265080,8.87,145.91,145.82,16.03719444]
[1723991265310,8.87,145.89,145.82,7.16719444]
[1723991265604,16.13449,145.88,145.77,273.5001]
[1723991265815,1.66112467,145.87,145.79,8.87]
[1723991266099,8.99549,145.87,145.77,22.96407574]
[1723991266283,8.87,145.87,145.78,8.87]
[1723991268202,8.87,145.87,145.8,8.87]
[1723991268401,16.38547,145.88,145.77,7.28946574]
[1723991268577,16.13449,145.88,145.79,22.15]
[1723991268777,16.13449,145.88,145.8,20.0]
[1723991269085,16.009,145.88,145.81,22.27549]
[1723991269293,16.009,145.88,145.82,20.0]
[1723991269811,16.009,145.88,145.8,20.12549]
[1723991271676,16.009,145.88,145.81,45.0]
[1723991271877,16.009,145.88,145.82,20.0]
[1723991273706,16.009,145.88,145.83,22.15]
[1723991273884,16.009,145.88,145.84,20.0]
[1723991274424,22.2105,145.92,145.84,20.0]
[1723991279807,69.18759467,145.91,145.79,22.15]
[1723991280015,0.12549,145.9,145.79,22.15]
[1723991280900,0.12549,145.9,145.8,0.25098]
[1723991281092,0.12549,145.9,145.79,22.40098]
[1723991281295,0.12549,145.9,145.8,20.0]
[1723991281609,0.12549,145.9,145.81,22.15]
[1723991281794,0.12549,145.9,145.82,20.0]
[1723991282200,45.25098,145.91,145.82,20.0]
[1723991282397,22.2105,145.92,145.83,22.15]
[1723991282603,22.2105,145.92,145.85,22.15]
[1723991282912,22.2105,145.92,145.86,20.0]
[1723991285407,22.2105,145.92,145.84,0.12549]
[1723991285617,22.2105,145.92,145.84,65.12549]
[1723991286200,22.2105,145.92,145.85,22.27549]
[1723991286405,22.2105,145.92,145.86,20.0]
[1723991286918,22.2105,145.92,145.87,22.27549]
[1723991287135,22.2105,145.92,145.88,20.0]
[1723991292626,16.0365,145.92,145.89,8.85]
[1723991292832,16.0365,145.92,145.9,20.0]
[1723991295521,16.0365,145.92,145.88,20.0]
[1723991296312,16.0365,145.92,145.83,2.43027378]
[1723991296619,7.94042467,145.91,145.84,8.85]
[1723991297014,6.2793,145.91,145.84,8.85]
[1723991297930,6.2793,145.91,145.86,8.85]
[1723991298435,6.2793,145.91,145.84,22.13]
[1723991299228,6.2793,145.91,145.85,20.0]
[1723991300033,6.2793,145.91,145.83,42.25549]
[1723991300231,6.2793,145.91,145.84,45.0]
[1723991300541,6.2793,145.91,145.85,20.0]
[1723991301134,7.94042467,145.91,145.85,20.0]
[1723991301340,7.94042467,145.91,145.83,20.12549]
[1723991302040,6.2793,145.91,145.83,20.12549]
[1723991302814,6.2793,145.91,145.83,29.92666612]
[1723991303022,6.2793,145.91,145.84,22.13]
[1723991303329,6.2793,145.91,145.85,20.0]
[1723991303522,6.2793,145.91,145.86,0.12549]
[1723991303725,6.2793,145.91,145.86,22.25549]
[1723991304037,6.2793,145.91,145.87,20.0]
[1723991305325,6.2793,145.91,145.85,20.12549]
[1723991307027,6.2793,145.91,145.85,20.0]
[1723991307347,7.94042467,145.91,145.85,20.0]
[1723991307641,6.2793,145.91,145.85,20.0]
[1723991310147,7.94042467,145.91,145.85,20.0]
[1723991310349,6.2793,145.91,145.85,20.0]
[1723991312145,1.66112467,145.9,145.85,20.0]
[1723991312358,1.66112467,145.9,145.83,20.0]
[1723991313041,1.66112467,145.89,145.81,7.17043908]
[1723991313233,1.66112467,145.89,145.8,22.13]
[1723991314229,15.7711,145.88,145.8,22.13]
[1723991315729,6.2915,145.86,145.81,20.0]
[1723991315932,6.2915,145.86,145.8,20.0]
[1723991316248,6.2915,145.86,145.79,20.12549]
[1723991319355,1.66112467,145.85,145.79,20.12549]
[1723991319530,7.95262467,145.86,145.79,20.12549]
[1723991320351,17.71542467,145.85,145.76,7.16915648]
[1723991320534,22.2206,145.83,145.74,7.45965029]
[1723991320738,10.65661467,145.82,145.73,8.87]
[1723991322430,1.78661467,145.82,145.71,22.29549]
[1723991322636,46.78661467,145.82,145.71,22.29549]
[1723991322836,46.78661467,145.82,145.72,45.37647]
[1723991323037,46.78661467,145.82,145.73,0.12549]
[1723991323434,46.78661467,145.82,145.73,20.0]
[1723991323742,45.12549,145.82,145.73,20.0]
[1723991324427,45.12549,145.82,145.73,42.17]
[1723991324934,22.2206,145.83,145.76,0.12549]
[1723991325128,23.88172467,145.83,145.76,0.12549]
[1723991325435,22.2206,145.83,145.76,20.0]
[1723991326434,1.66112467,145.82,145.76,20.0]
[1723991326647,22.2206,145.83,145.74,20.0]
[1723991326850,0.12549,145.82,145.74,20.0]
[1723991327050,1.78661467,145.82,145.74,20.0]
[1723991327570,46.78661467,145.82,145.73,20.12549]
[1723991328161,46.78661467,145.82,145.73,20.0]
[1723991330051,0.12549,145.82,145.73,42.17]
[1723991330936,0.12549,145.82,145.73,41.17]
[1723991331461,47.03759467,145.82,145.73,41.17]
[1723991331963,45.37647,145.82,145.73,41.17]
[1723991332761,47.03759467,145.82,145.73,41.17]
[1723991333156,23.41652715,145.83,145.74,0.12549]
[1723991333360,23.41652715,145.83,145.74,45.12549]
[1723991333661,23.41652715,145.83,145.75,42.17]
[1723991336834,23.41652715,145.83,145.75,20.0]
[1723991337237,45.37647,145.82,145.74,20.0]
[1723991337466,45.25098,145.82,145.74,20.0]
[1723991340362,45.12549,145.82,145.74,20.0]
[1723991342461,22.47158,145.83,145.75,0.12549]
[1723991342462,22.34609,145.83,145.75,0.12549]
[1723991342667,22.2206,145.83,145.75,0.12549]
[1723991344351,22.2206,145.83,145.75,22.29549]
[1723991344556,22.2206,145.83,145.76,28.86]
[1723991344870,22.2206,145.83,145.78,8.86]
[1723991345175,22.2206,145.83,145.79,21.37085792]
[1723991345348,22.2206,145.83,145.79,20.0]
[1723991345961,22.2206,145.83,145.77,20.12549]
[1723991354581,1.66112467,145.82,145.77,20.0]
[1723991355786,45.0,145.82,145.73,7.46063525]
[1723991356084,45.0,145.82,145.73,16.32063525]
[1723991357389,45.0,145.82,145.74,20.0]
[1723991359597,8.86,145.81,145.74,20.0]
[1723991359774,8.86,145.81,145.73,20.12549]
[1723991363265,16.562,145.8,145.74,20.0]